[Event "Titled Tuesday Blitz December 20 Early 2022"]
[White "Sokolov, Ivan"]
[Black "Steegersee"]
[WhiteFideId "14400030"]
[WhiteElo "2590"]
[BlackElo "2425"]
[Result "1-0"]
[Round "09"]
[TimeControl "180+2"]
[Date "2022.12.20"]
[WhiteClock "0:00:23"]
[BlackClock "0:00:35"]

1. b3 {[%clk 0:03:00]}  e5 {[%clk 0:02:52]} 2. Bb2 {[%clk 0:03:00]}  Nc6 {[%clk 0:02:53]} 3. Nf3 {[%clk 0:03:00]}  e4 {[%clk 0:02:54]} 4. Nd4 {[%clk 0:03:01]}  Nxd4 {[%clk 0:02:54]} 5. Bxd4 {[%clk 0:03:02]}  d5 {[%clk 0:02:54]} 6. c4 {[%clk 0:03:01]}  Nf6 {[%clk 0:02:54]} 7. Nc3 {[%clk 0:03:02]}  c6 {[%clk 0:02:52]} 8. Bxf6 {[%clk 0:02:55]}  gxf6 {[%clk 0:02:49]} 9. e3 {[%clk 0:02:55]}  Bb4 {[%clk 0:02:47]} 10. Rc1 {[%clk 0:02:55]}  O-O {[%clk 0:02:44]} 11. Qh5 {[%clk 0:02:46]}  Bxc3 {[%clk 0:02:35]} 12. Rxc3 {[%clk 0:02:45]}  f5 {[%clk 0:02:35]} 13. cxd5 {[%clk 0:02:28]}  cxd5 {[%clk 0:02:29]} 14. Be2 {[%clk 0:02:27]}  Qf6 {[%clk 0:02:13]} 15. O-O {[%clk 0:02:25]}  Be6 {[%clk 0:02:10]} 16. Rfc1 {[%clk 0:02:16]}  Rac8 {[%clk 0:02:08]} 17. h4 {[%clk 0:00:55]}  h6 {[%clk 0:01:51]} 18. g3 {[%clk 0:00:41]}  Rxc3 {[%clk 0:01:48]} 19. Rxc3 {[%clk 0:00:42]}  Rc8 {[%clk 0:01:48]} 20. Rxc8+ {[%clk 0:00:41]}  Bxc8 {[%clk 0:01:42]} 21. Bf1 {[%clk 0:00:42]}  Be6 {[%clk 0:01:40]} 22. d4 {[%clk 0:00:19]}  Kg7 {[%clk 0:01:31]} 23. Bh3 {[%clk 0:00:16]}  Bd7 {[%clk 0:01:23]} 24. Qd1 {[%clk 0:00:13]}  Qc6 {[%clk 0:01:18]} 25. Qd2 {[%clk 0:00:14]}  b6 {[%clk 0:01:16]} 26. Bf1 {[%clk 0:00:15]}  a5 {[%clk 0:01:15]} 27. Be2 {[%clk 0:00:14]}  Be6 {[%clk 0:01:14]} 28. Kf1 {[%clk 0:00:14]}  Bd7 {[%clk 0:01:09]} 29. Ke1 {[%clk 0:00:14]}  Kf6 {[%clk 0:01:04]} 30. Kd1 {[%clk 0:00:14]}  Ke7 {[%clk 0:01:03]} 31. Qc2 {[%clk 0:00:15]}  Qd6 {[%clk 0:00:59]} 32. Qb2 {[%clk 0:00:14]}  Qb4 {[%clk 0:00:59]} 33. a3 {[%clk 0:00:15]}  Qd6 {[%clk 0:01:00]} 34. Qc1 {[%clk 0:00:15]}  Be8 {[%clk 0:00:57]} 35. Kc2 {[%clk 0:00:15]}  Bd7 {[%clk 0:00:57]} 36. Kb2 {[%clk 0:00:15]}  Be8 {[%clk 0:00:57]} 37. Qc3 {[%clk 0:00:15]}  Bd7 {[%clk 0:00:57]} 38. b4 {[%clk 0:00:16]}  axb4 {[%clk 0:00:55]} 39. Qxb4 {[%clk 0:00:16]}  Qxb4+ {[%clk 0:00:53]} 40. axb4 {[%clk 0:00:17]}  b5 {[%clk 0:00:53]} 41. Kc3 {[%clk 0:00:17]}  Kf6 {[%clk 0:00:53]} 42. Kd2 {[%clk 0:00:18]}  Kg6 {[%clk 0:00:37]} 43. Ke1 {[%clk 0:00:18]}  h5 {[%clk 0:00:37]} 44. Kf1 {[%clk 0:00:19]}  Kh6 {[%clk 0:00:38]} 45. Kg1 {[%clk 0:00:20]}  Kg6 {[%clk 0:00:38]} 46. Kh2 {[%clk 0:00:20]}  Kh6 {[%clk 0:00:39]} 47. Bd1 {[%clk 0:00:20]}  Kg6 {[%clk 0:00:39]} 48. Bc2 {[%clk 0:00:21]}  Kh6 {[%clk 0:00:39]} 49. Bb1 {[%clk 0:00:21]}  Kg6 {[%clk 0:00:39]} 50. Kg1 {[%clk 0:00:22]}  Kh6 {[%clk 0:00:40]} 51. Kf1 {[%clk 0:00:23]}  Kg6 {[%clk 0:00:40]} 52. Ke1 {[%clk 0:00:23]}  Kh6 {[%clk 0:00:41]} 53. Ba2 {[%clk 0:00:24]}  Kg6 {[%clk 0:00:42]} 54. Bxd5 {[%clk 0:00:25]}  Kf6 {[%clk 0:00:40]} 55. Kd2 {[%clk 0:00:23]}  Ke7 {[%clk 0:00:40]} 56. Kc3 {[%clk 0:00:23]}  Kf6 {[%clk 0:00:39]} 57. Bb3 {[%clk 0:00:22]}  Be8 {[%clk 0:00:39]} 58. Ba2 {[%clk 0:00:21]}  Bd7 {[%clk 0:00:38]} 59. Bb3 {[%clk 0:00:22]}  Be8 {[%clk 0:00:38]} 60. Bd1 {[%clk 0:00:22]}  Kg6 {[%clk 0:00:35]} 61. d5 {[%clk 0:00:23]} 1-0


[Site "https://www.chess.com"]

[Event "Titled Tuesday Blitz December 20 Early 2022"]
[White "Suduvasachmatai"]
[Black "Dreux, Vincent"]
[BlackFideId "658960"]
[WhiteElo "2110"]
[BlackElo "1937"]
[Result "0-1"]
[Round "09"]
[TimeControl "180+2"]
[Date "2022.12.20"]
[WhiteClock "0:00:05"]
[BlackClock "0:00:07"]

1. e4 {[%clk 0:02:58]}  c5 {[%clk 0:02:59]} 2. c3 {[%clk 0:02:57]}  d5 {[%clk 0:02:59]} 3. exd5 {[%clk 0:02:58]}  Qxd5 {[%clk 0:02:59]} 4. d4 {[%clk 0:02:59]}  e6 {[%clk 0:03:00]} 5. Nf3 {[%clk 0:02:59]}  Nf6 {[%clk 0:03:01]} 6. Be2 {[%clk 0:02:59]}  Be7 {[%clk 0:03:01]} 7. O-O {[%clk 0:02:59]}  O-O {[%clk 0:03:01]} 8. Be3 {[%clk 0:02:58]}  cxd4 {[%clk 0:03:01]} 9. cxd4 {[%clk 0:02:58]}  Nc6 {[%clk 0:03:02]} 10. Nc3 {[%clk 0:02:59]}  Qd8 {[%clk 0:02:52]} 11. Ne5 {[%clk 0:02:53]}  Nb4 {[%clk 0:02:44]} 12. Bd3 {[%clk 0:02:47]}  Nxd3 {[%clk 0:02:32]} 13. Qxd3 {[%clk 0:02:45]}  Nd5 {[%clk 0:02:28]} 14. f4 {[%clk 0:02:32]}  b6 {[%clk 0:02:16]} 15. f5 {[%clk 0:02:30]}  Nxc3 {[%clk 0:01:55]} 16. bxc3 {[%clk 0:02:16]}  exf5 {[%clk 0:01:55]} 17. Rae1 {[%clk 0:02:04]}  Bd6 {[%clk 0:01:42]} 18. Bf4 {[%clk 0:01:59]}  Qc7 {[%clk 0:01:29]} 19. Bg3 {[%clk 0:01:48]}  f6 {[%clk 0:01:23]} 20. Nc4 {[%clk 0:01:44]}  Bxg3 {[%clk 0:01:22]} 21. hxg3 {[%clk 0:01:36]}  Ba6 {[%clk 0:01:23]} 22. Qxf5 {[%clk 0:01:27]}  Bxc4 {[%clk 0:01:22]} 23. Rf4 {[%clk 0:01:22]}  Rae8 {[%clk 0:01:18]} 24. Rfe4 {[%clk 0:01:16]}  Rxe4 {[%clk 0:01:07]} 25. Qxe4 {[%clk 0:01:13]}  Bf7 {[%clk 0:01:03]} 26. Kh2 {[%clk 0:01:00]}  Re8 {[%clk 0:01:02]} 27. Qb1 {[%clk 0:00:58]}  Rxe1 {[%clk 0:00:52]} 28. Qxe1 {[%clk 0:00:53]}  h5 {[%clk 0:00:53]} 29. Qe4 {[%clk 0:00:48]}  Qd6 {[%clk 0:00:43]} 30. Qa8+ {[%clk 0:00:34]}  Kh7 {[%clk 0:00:43]} 31. Qe4+ {[%clk 0:00:29]}  Bg6 {[%clk 0:00:39]} 32. Qh4 {[%clk 0:00:23]}  b5 {[%clk 0:00:31]} 33. Kg1 {[%clk 0:00:19]}  a5 {[%clk 0:00:28]} 34. g4 {[%clk 0:00:19]}  Qd5 {[%clk 0:00:27]} 35. gxh5 {[%clk 0:00:19]}  Qxh5 {[%clk 0:00:27]} 36. Qe1 {[%clk 0:00:19]}  Qd5 {[%clk 0:00:23]} 37. Qh4+ {[%clk 0:00:18]}  Kg8 {[%clk 0:00:23]} 38. Qe1 {[%clk 0:00:18]}  Kf7 {[%clk 0:00:21]} 39. Qg3 {[%clk 0:00:11]}  Qd7 {[%clk 0:00:17]} 40. Qe3 {[%clk 0:00:07]}  Bf5 {[%clk 0:00:12]} 41. Qf4 {[%clk 0:00:06]}  g5 {[%clk 0:00:09]} 42. Qe3 {[%clk 0:00:06]}  Be6 {[%clk 0:00:08]} 43. Qf3 {[%clk 0:00:06]}  Bd5 {[%clk 0:00:08]} 44. Qh5+ {[%clk 0:00:06]}  Kg7 {[%clk 0:00:08]} 45. Qe2 {[%clk 0:00:05]}  Qe6 {[%clk 0:00:08]} 46. Qd3 {[%clk 0:00:05]}  Qe4 {[%clk 0:00:07]} 47. Qxb5 {[%clk 0:00:05]}  Qxg2# {[%clk 0:00:07]} 0-1


[Site "https://www.chess.com"]

[Event "Titled Tuesday Blitz December 20 Early 2022"]
[White "Szpar, Milosz"]
[Black "Balasch Peries, Eduard"]
[WhiteFideId "1184989"]
[BlackFideId "32067372"]
[WhiteElo "2447"]
[BlackElo "1671"]
[Result "1-0"]
[Round "09"]
[TimeControl "180+2"]
[Date "2022.12.20"]
[WhiteClock "0:00:56"]
[BlackClock "0:00:03"]

1. e4 {[%clk 0:02:50]}  e5 {[%clk 0:02:59]} 2. Nf3 {[%clk 0:02:49]}  Nc6 {[%clk 0:03:00]} 3. Bb5 {[%clk 0:02:49]}  a6 {[%clk 0:03:00]} 4. Ba4 {[%clk 0:02:49]}  Nf6 {[%clk 0:03:00]} 5. O-O {[%clk 0:02:47]}  Be7 {[%clk 0:03:01]} 6. Re1 {[%clk 0:02:47]}  b5 {[%clk 0:03:00]} 7. Bb3 {[%clk 0:02:47]}  d6 {[%clk 0:03:01]} 8. c3 {[%clk 0:02:39]}  O-O {[%clk 0:03:02]} 9. h3 {[%clk 0:02:39]}  Na5 {[%clk 0:03:02]} 10. Bc2 {[%clk 0:02:39]}  c5 {[%clk 0:03:02]} 11. d4 {[%clk 0:02:38]}  Qc7 {[%clk 0:03:03]} 12. Nbd2 {[%clk 0:02:36]}  Be6 {[%clk 0:03:03]} 13. Nf1 {[%clk 0:02:32]}  Nc4 {[%clk 0:03:03]} 14. b3 {[%clk 0:02:29]}  Nb6 {[%clk 0:03:02]} 15. Ne3 {[%clk 0:02:21]}  a5 {[%clk 0:02:48]} 16. a4 {[%clk 0:01:57]}  bxa4 {[%clk 0:02:35]} 17. bxa4 {[%clk 0:01:42]}  Rfc8 {[%clk 0:02:33]} 18. d5 {[%clk 0:01:37]}  Bd7 {[%clk 0:02:32]} 19. Nh2 {[%clk 0:01:33]}  Rab8 {[%clk 0:02:25]} 20. c4 {[%clk 0:01:27]}  Na8 {[%clk 0:02:13]} 21. Bd2 {[%clk 0:01:27]}  Qa7 {[%clk 0:02:10]} 22. Bc3 {[%clk 0:01:26]}  Nc7 {[%clk 0:02:03]} 23. Rf1 {[%clk 0:01:26]}  Na6 {[%clk 0:01:53]} 24. f4 {[%clk 0:01:23]}  exf4 {[%clk 0:01:51]} 25. Rxf4 {[%clk 0:01:23]}  Nb4 {[%clk 0:01:51]} 26. Bxf6 {[%clk 0:01:11]}  Bxf6 {[%clk 0:01:49]} 27. Rxf6 {[%clk 0:01:12]}  gxf6 {[%clk 0:01:50]} 28. Qh5 {[%clk 0:01:12]}  Nxc2 {[%clk 0:01:36]} 29. Nxc2 {[%clk 0:01:05]}  Rb2 {[%clk 0:01:12]} 30. Ng4 {[%clk 0:01:01]}  Rxc2 {[%clk 0:00:41]} 31. Nh6+ {[%clk 0:00:55]}  Kg7 {[%clk 0:00:18]} 32. Qxf7+ {[%clk 0:00:55]}  Kxh6 {[%clk 0:00:17]} 33. Qxf6+ {[%clk 0:00:56]}  Kh5 {[%clk 0:00:18]} 34. g4+ {[%clk 0:00:56]}  Bxg4 {[%clk 0:00:17]} 35. hxg4+ {[%clk 0:00:57]}  Kxg4 {[%clk 0:00:16]} 36. Kh1 {[%clk 0:00:58]}  Kh5 {[%clk 0:00:04]} 37. Rg1 {[%clk 0:00:56]}  Rc1 {[%clk 0:00:03]} 1-0


[Site "https://www.chess.com"]

[Event "Titled Tuesday Blitz December 20 Early 2022"]
[White "TigrVShlyape"]
[Black "AttractiveChess"]
[WhiteElo "2914"]
[BlackElo "2784"]
[Result "1-0"]
[Round "09"]
[TimeControl "180+2"]
[Date "2022.12.20"]
[WhiteClock "0:00:36"]
[BlackClock "0:00:07"]

1. e4 {[%clk 0:03:00]}  e5 {[%clk 0:02:58]} 2. Nf3 {[%clk 0:02:59]}  Nc6 {[%clk 0:02:58]} 3. Bb5 {[%clk 0:02:59]}  a6 {[%clk 0:02:58]} 4. Ba4 {[%clk 0:02:58]}  Nf6 {[%clk 0:02:58]} 5. O-O {[%clk 0:02:58]}  Be7 {[%clk 0:02:58]} 6. Re1 {[%clk 0:02:58]}  b5 {[%clk 0:02:58]} 7. Bb3 {[%clk 0:02:58]}  O-O {[%clk 0:02:59]} 8. c3 {[%clk 0:02:57]}  d6 {[%clk 0:02:59]} 9. d4 {[%clk 0:02:57]}  Bg4 {[%clk 0:02:59]} 10. d5 {[%clk 0:02:57]}  Na5 {[%clk 0:02:59]} 11. Bc2 {[%clk 0:02:58]}  c6 {[%clk 0:03:00]} 12. h3 {[%clk 0:02:59]}  Bc8 {[%clk 0:03:00]} 13. dxc6 {[%clk 0:02:59]}  Nxc6 {[%clk 0:02:56]} 14. Nbd2 {[%clk 0:02:46]}  h6 {[%clk 0:02:55]} 15. Nf1 {[%clk 0:02:45]}  Be6 {[%clk 0:02:55]} 16. Ng3 {[%clk 0:02:45]}  Re8 {[%clk 0:02:51]} 17. Qe2 {[%clk 0:02:08]}  Qc7 {[%clk 0:02:42]} 18. a4 {[%clk 0:01:58]}  b4 {[%clk 0:02:42]} 19. c4 {[%clk 0:01:57]}  b3 {[%clk 0:02:37]} 20. Bxb3 {[%clk 0:01:55]}  Na5 {[%clk 0:02:37]} 21. Ba2 {[%clk 0:01:55]}  Nxc4 {[%clk 0:02:28]} 22. Bxh6 {[%clk 0:01:51]}  Na5 {[%clk 0:02:09]} 23. Bxe6 {[%clk 0:01:47]}  fxe6 {[%clk 0:02:09]} 24. Bd2 {[%clk 0:01:42]}  Nb3 {[%clk 0:02:09]} 25. Rad1 {[%clk 0:01:40]}  Qc2 {[%clk 0:01:47]} 26. Bb4 {[%clk 0:01:35]}  Qc6 {[%clk 0:01:28]} 27. a5 {[%clk 0:01:25]}  Rab8 {[%clk 0:01:28]} 28. Bc3 {[%clk 0:01:24]}  Bf8 {[%clk 0:01:22]} 29. Nh4 {[%clk 0:01:18]}  Kf7 {[%clk 0:01:19]} 30. Nh5 {[%clk 0:01:15]}  Be7 {[%clk 0:01:12]} 31. Nxf6 {[%clk 0:01:15]}  Bxf6 {[%clk 0:01:12]} 32. Qh5+ {[%clk 0:01:14]}  Kg8 {[%clk 0:01:13]} 33. Ng6 {[%clk 0:01:14]}  Rb5 {[%clk 0:01:03]} 34. Rd3 {[%clk 0:01:09]}  Nd4 {[%clk 0:00:52]} 35. g4 {[%clk 0:01:04]}  Qc4 {[%clk 0:00:46]} 36. Nxe5 {[%clk 0:00:52]}  Bxe5 {[%clk 0:00:37]} 37. Qxe8+ {[%clk 0:00:52]}  Kh7 {[%clk 0:00:37]} 38. Rde3 {[%clk 0:00:46]}  Nc2 {[%clk 0:00:33]} 39. Bxe5 {[%clk 0:00:40]}  Nxe3 {[%clk 0:00:20]} 40. Bxg7 {[%clk 0:00:39]}  Qxe4 {[%clk 0:00:08]} 41. Qh8+ {[%clk 0:00:36]}  Kg6 {[%clk 0:00:07]} 42. Qh6+ {[%clk 0:00:37]}  Kf7 {[%clk 0:00:07]} 43. Rxe3 {[%clk 0:00:36]} 1-0


[Site "https://www.chess.com"]

[Event "Titled Tuesday Blitz December 20 Early 2022"]
[White "Tologon tegin, Semetei"]
[Black "Misanik, Peter"]
[WhiteFideId "13800574"]
[BlackFideId "14921421"]
[WhiteElo "2372"]
[BlackElo "1785"]
[Result "0-1"]
[Round "09"]
[TimeControl "180+2"]
[Date "2022.12.20"]
[WhiteClock "0:00:03"]
[BlackClock "0:01:40"]

1. e4 {[%clk 0:02:22]}  c5 {[%clk 0:02:59]} 2. Nf3 {[%clk 0:02:20]}  d6 {[%clk 0:02:57]} 3. d4 {[%clk 0:02:19]}  cxd4 {[%clk 0:02:58]} 4. Nxd4 {[%clk 0:02:20]}  Nf6 {[%clk 0:02:59]} 5. Nc3 {[%clk 0:02:20]}  a6 {[%clk 0:02:59]} 6. a3 {[%clk 0:02:21]}  e5 {[%clk 0:02:56]} 7. Nf3 {[%clk 0:02:20]}  Be7 {[%clk 0:02:54]} 8. Bg5 {[%clk 0:02:20]}  Be6 {[%clk 0:02:54]} 9. Bxf6 {[%clk 0:02:20]}  Bxf6 {[%clk 0:02:55]} 10. Nd5 {[%clk 0:02:20]}  Nd7 {[%clk 0:02:53]} 11. Bc4 {[%clk 0:02:20]}  Nb6 {[%clk 0:02:53]} 12. Ba2 {[%clk 0:02:15]}  Rc8 {[%clk 0:02:50]} 13. c3 {[%clk 0:02:15]}  Be7 {[%clk 0:02:49]} 14. O-O {[%clk 0:02:13]}  O-O {[%clk 0:02:48]} 15. Qd3 {[%clk 0:01:57]}  Rc5 {[%clk 0:02:38]} 16. Nxb6 {[%clk 0:01:53]}  Qxb6 {[%clk 0:02:37]} 17. Bxe6 {[%clk 0:01:54]}  fxe6 {[%clk 0:02:38]} 18. b4 {[%clk 0:01:54]}  Rc7 {[%clk 0:02:36]} 19. c4 {[%clk 0:01:50]}  Qc6 {[%clk 0:02:33]} 20. Rac1 {[%clk 0:01:50]}  Bf6 {[%clk 0:02:29]} 21. Rfd1 {[%clk 0:01:47]}  Rd8 {[%clk 0:02:29]} 22. h4 {[%clk 0:01:33]}  h6 {[%clk 0:02:29]} 23. g4 {[%clk 0:01:30]}  Qe8 {[%clk 0:02:27]} 24. h5 {[%clk 0:01:23]}  Be7 {[%clk 0:02:20]} 25. Kg2 {[%clk 0:00:59]}  Rdc8 {[%clk 0:02:17]} 26. Rc3 {[%clk 0:00:54]}  Qf7 {[%clk 0:02:02]} 27. Rdc1 {[%clk 0:00:45]}  Qf4 {[%clk 0:02:02]} 28. Nh2 {[%clk 0:00:44]}  b5 {[%clk 0:01:48]} 29. f3 {[%clk 0:00:25]}  bxc4 {[%clk 0:01:43]} 30. Rxc4 {[%clk 0:00:25]}  Qxc1 {[%clk 0:01:41]} 31. Rxc1 {[%clk 0:00:25]}  Rxc1 {[%clk 0:01:42]} 32. Qxa6 {[%clk 0:00:16]}  R8c2+ {[%clk 0:01:43]} 33. Kh3 {[%clk 0:00:16]}  Rh1 {[%clk 0:01:41]} 34. g5 {[%clk 0:00:03]}  Rhxh2+ {[%clk 0:01:40]} 0-1


[Site "https://www.chess.com"]

[Event "Titled Tuesday Blitz December 20 Early 2022"]
[White "Ural_bogatyr"]
[Black "Lim, Seng Hoo"]
[BlackFideId "5800021"]
[WhiteElo "2615"]
[BlackElo "2440"]
[Result "1-0"]
[Round "09"]
[TimeControl "180+2"]
[Date "2022.12.20"]
[WhiteClock "0:01:20"]
[BlackClock "0:01:20"]

1. d4 {[%clk 0:03:00]}  Nf6 {[%clk 0:02:40]} 2. Nc3 {[%clk 0:02:59]}  d5 {[%clk 0:02:39]} 3. Bf4 {[%clk 0:02:55]}  a6 {[%clk 0:02:39]} 4. e3 {[%clk 0:02:51]}  e6 {[%clk 0:02:38]} 5. g4 {[%clk 0:02:46]}  c5 {[%clk 0:02:37]} 6. g5 {[%clk 0:02:44]}  Nfd7 {[%clk 0:02:37]} 7. Nf3 {[%clk 0:02:36]}  Nc6 {[%clk 0:02:36]} 8. h4 {[%clk 0:02:29]}  b5 {[%clk 0:02:30]} 9. Bg2 {[%clk 0:02:22]}  Bb7 {[%clk 0:02:29]} 10. Ne2 {[%clk 0:02:17]}  Rc8 {[%clk 0:02:23]} 11. c3 {[%clk 0:02:13]}  Qb6 {[%clk 0:02:20]} 12. Ng3 {[%clk 0:02:11]}  b4 {[%clk 0:02:14]} 13. O-O {[%clk 0:02:09]}  Be7 {[%clk 0:02:09]} 14. e4 {[%clk 0:02:04]}  dxe4 {[%clk 0:02:05]} 15. Nxe4 {[%clk 0:02:04]}  O-O {[%clk 0:02:05]} 16. Re1 {[%clk 0:02:01]}  Rfd8 {[%clk 0:02:03]} 17. h5 {[%clk 0:01:54]}  cxd4 {[%clk 0:02:01]} 18. cxd4 {[%clk 0:01:54]}  Nf8 {[%clk 0:01:57]} 19. Be3 {[%clk 0:01:50]}  Na5 {[%clk 0:01:50]} 20. Ne5 {[%clk 0:01:47]}  Bd5 {[%clk 0:01:44]} 21. Qg4 {[%clk 0:01:42]}  Qb7 {[%clk 0:01:32]} 22. Nf6+ {[%clk 0:01:21]}  Kh8 {[%clk 0:01:20]} 23. Nxf7# {[%clk 0:01:20]} 1-0


[Site "https://www.chess.com"]

[Event "Titled Tuesday Blitz December 20 Early 2022"]
[White "VincentKeymer"]
[Black "Al-Kailani, Zaid"]
[BlackFideId "8100187"]
[WhiteElo "2980"]
[BlackElo "2053"]
[Result "0-1"]
[Round "09"]
[TimeControl "180+2"]
[Date "2022.12.20"]
[WhiteClock "0:00:05"]
[BlackClock "0:01:02"]

1. Nf3 {[%clk 0:03:00]}  d5 {[%clk 0:02:59]} 2. e3 {[%clk 0:02:57]}  Nf6 {[%clk 0:02:59]} 3. c4 {[%clk 0:02:57]}  c6 {[%clk 0:02:59]} 4. Nc3 {[%clk 0:02:58]}  Bg4 {[%clk 0:02:57]} 5. cxd5 {[%clk 0:02:57]}  cxd5 {[%clk 0:02:56]} 6. Qb3 {[%clk 0:02:57]}  Nc6 {[%clk 0:02:33]} 7. Qxb7 {[%clk 0:02:39]}  Bd7 {[%clk 0:02:33]} 8. Bb5 {[%clk 0:01:54]}  Rb8 {[%clk 0:02:30]} 9. Qxc6 {[%clk 0:01:43]}  Bxc6 {[%clk 0:02:14]} 10. Bxc6+ {[%clk 0:01:42]}  Nd7 {[%clk 0:02:14]} 11. Ne5 {[%clk 0:01:42]}  Rb7 {[%clk 0:02:15]} 12. Bxb7 {[%clk 0:00:57]}  Nxe5 {[%clk 0:02:15]} 13. Bxd5 {[%clk 0:00:52]}  e6 {[%clk 0:02:09]} 14. Be4 {[%clk 0:00:52]}  f5 {[%clk 0:01:50]} 15. Bc2 {[%clk 0:00:52]}  Nd3+ {[%clk 0:01:49]} 16. Ke2 {[%clk 0:00:51]}  Nb4 {[%clk 0:01:49]} 17. Ba4+ {[%clk 0:00:50]}  Kf7 {[%clk 0:01:49]} 18. d4 {[%clk 0:00:50]}  Qg5 {[%clk 0:01:44]} 19. g3 {[%clk 0:00:39]}  h5 {[%clk 0:01:36]} 20. a3 {[%clk 0:00:34]}  Qg4+ {[%clk 0:01:31]} 21. f3 {[%clk 0:00:23]}  Qh3 {[%clk 0:01:31]} 22. Rf1 {[%clk 0:00:20]}  Nd3 {[%clk 0:01:22]} 23. Bd2 {[%clk 0:00:16]}  Nxb2 {[%clk 0:01:22]} 24. Bb3 {[%clk 0:00:17]}  Qxh2+ {[%clk 0:01:15]} 25. Rf2 {[%clk 0:00:17]}  Qxg3 {[%clk 0:01:15]} 26. Ra2 {[%clk 0:00:18]}  Nd3 {[%clk 0:01:15]} 27. Kxd3 {[%clk 0:00:09]}  Qxf2 {[%clk 0:01:15]} 28. d5 {[%clk 0:00:10]}  e5 {[%clk 0:01:10]} 29. d6+ {[%clk 0:00:08]}  Kg6 {[%clk 0:01:08]} 30. Bd5 {[%clk 0:00:06]}  Bxd6 {[%clk 0:01:05]} 31. e4 {[%clk 0:00:05]}  f4 {[%clk 0:01:02]} 0-1


[Site "https://www.chess.com"]

[Event "Titled Tuesday Blitz December 20 Early 2022"]
[White "Zahid, Sanatan"]
[Black "stollenmonster"]
[WhiteFideId "10201963"]
[WhiteElo "1930"]
[BlackElo "2932"]
[Result "0-1"]
[Round "09"]
[TimeControl "180+2"]
[Date "2022.12.20"]
[WhiteClock "0:01:32"]
[BlackClock "0:00:36"]

1. d4 {[%clk 0:03:00]}  Nf6 {[%clk 0:02:59]} 2. Nc3 {[%clk 0:03:01]}  d5 {[%clk 0:02:59]} 3. Bf4 {[%clk 0:03:00]}  g6 {[%clk 0:02:58]} 4. e3 {[%clk 0:03:00]}  Bg7 {[%clk 0:02:58]} 5. h4 {[%clk 0:03:00]}  h6 {[%clk 0:02:57]} 6. Nf3 {[%clk 0:02:59]}  c6 {[%clk 0:02:57]} 7. Ne5 {[%clk 0:02:59]}  Nbd7 {[%clk 0:02:55]} 8. Bd3 {[%clk 0:02:59]}  Nxe5 {[%clk 0:02:56]} 9. dxe5 {[%clk 0:03:00]}  Ng4 {[%clk 0:02:39]} 10. e4 {[%clk 0:02:19]}  d4 {[%clk 0:02:34]} 11. Ne2 {[%clk 0:02:20]}  Nxe5 {[%clk 0:02:32]} 12. Bxe5 {[%clk 0:02:21]}  Bxe5 {[%clk 0:02:33]} 13. f4 {[%clk 0:02:21]}  Bg7 {[%clk 0:02:33]} 14. e5 {[%clk 0:02:22]}  Bg4 {[%clk 0:02:30]} 15. Qd2 {[%clk 0:02:22]}  Qb6 {[%clk 0:02:22]} 16. O-O-O {[%clk 0:02:19]}  O-O-O {[%clk 0:02:22]} 17. Bc4 {[%clk 0:02:19]}  e6 {[%clk 0:02:21]} 18. Qd3 {[%clk 0:02:17]}  h5 {[%clk 0:02:19]} 19. Rd2 {[%clk 0:02:16]}  Qa5 {[%clk 0:02:01]} 20. Ng3 {[%clk 0:02:13]}  Bh6 {[%clk 0:01:56]} 21. Rf1 {[%clk 0:02:12]}  Kb8 {[%clk 0:01:53]} 22. Ne4 {[%clk 0:02:10]}  Bf5 {[%clk 0:01:52]} 23. Qf3 {[%clk 0:02:10]}  Rd7 {[%clk 0:01:29]} 24. Nd6 {[%clk 0:02:06]}  Bg4 {[%clk 0:01:28]} 25. Qb3 {[%clk 0:02:01]}  Qc5 {[%clk 0:01:16]} 26. Kb1 {[%clk 0:01:56]}  Rhd8 {[%clk 0:01:10]} 27. Rc1 {[%clk 0:01:55]}  Bxf4 {[%clk 0:01:07]} 28. Rf2 {[%clk 0:01:40]}  Bxc1 {[%clk 0:01:05]} 29. Rxf7 {[%clk 0:01:38]}  Rxf7 {[%clk 0:00:56]} 30. Nxf7 {[%clk 0:01:37]}  Rd7 {[%clk 0:00:56]} 31. Bxe6 {[%clk 0:01:37]}  Re7 {[%clk 0:00:54]} 32. Bxg4 {[%clk 0:01:37]}  hxg4 {[%clk 0:00:54]} 33. Kxc1 {[%clk 0:01:37]}  d3 {[%clk 0:00:47]} 34. Qxd3 {[%clk 0:01:36]}  Qg1+ {[%clk 0:00:47]} 35. Kd2 {[%clk 0:01:37]}  Qxg2+ {[%clk 0:00:46]} 36. Kc3 {[%clk 0:01:37]}  Qf3 {[%clk 0:00:45]} 37. e6 {[%clk 0:01:33]}  Rxe6 {[%clk 0:00:43]} 38. Kb4 {[%clk 0:01:33]}  Re4+ {[%clk 0:00:40]} 39. Kc5 {[%clk 0:01:31]}  Qf5+ {[%clk 0:00:35]} 40. Kd6 {[%clk 0:01:31]}  Re6+ {[%clk 0:00:35]} 41. Kd7 {[%clk 0:01:32]}  Qxf7+ {[%clk 0:00:36]} 42. Kd8 {[%clk 0:01:32]}  Re8# {[%clk 0:00:36]} 0-1


[Site "https://www.chess.com"]

[Event "Titled Tuesday Blitz December 20 Early 2022"]
[White "annacramling"]
[Black "Anata, Choudhury"]
[BlackFideId "10215026"]
[WhiteElo "2219"]
[BlackElo "2172"]
[Result "0-1"]
[Round "09"]
[TimeControl "180+2"]
[Date "2022.12.20"]
[WhiteClock "0:00:01"]
[BlackClock "0:00:27"]

1. d4 {[%clk 0:02:49]}  d5 {[%clk 0:02:59]} 2. c4 {[%clk 0:02:48]}  c6 {[%clk 0:03:00]} 3. Nc3 {[%clk 0:02:45]}  Nf6 {[%clk 0:03:00]} 4. Nf3 {[%clk 0:02:44]}  e6 {[%clk 0:03:00]} 5. e3 {[%clk 0:02:39]}  Nbd7 {[%clk 0:02:59]} 6. Bd3 {[%clk 0:02:38]}  dxc4 {[%clk 0:03:00]} 7. Bxc4 {[%clk 0:02:39]}  b5 {[%clk 0:03:00]} 8. Bd3 {[%clk 0:02:39]}  Bd6 {[%clk 0:03:01]} 9. e4 {[%clk 0:02:38]}  e5 {[%clk 0:03:01]} 10. d5 {[%clk 0:02:38]}  cxd5 {[%clk 0:02:53]} 11. Nxb5 {[%clk 0:02:38]}  Bc5 {[%clk 0:02:45]} 12. Nc3 {[%clk 0:02:03]}  dxe4 {[%clk 0:02:37]} 13. Nxe4 {[%clk 0:02:02]}  O-O {[%clk 0:02:33]} 14. O-O {[%clk 0:01:55]}  Nxe4 {[%clk 0:02:22]} 15. Bxe4 {[%clk 0:01:55]}  Rb8 {[%clk 0:02:21]} 16. Bg5 {[%clk 0:01:52]}  f6 {[%clk 0:02:01]} 17. Bh4 {[%clk 0:01:13]}  Rxb2 {[%clk 0:01:47]} 18. Bd5+ {[%clk 0:00:47]}  Kh8 {[%clk 0:01:45]} 19. Bb3 {[%clk 0:00:48]}  Ba6 {[%clk 0:01:13]} 20. Re1 {[%clk 0:00:42]}  Qb6 {[%clk 0:01:10]} 21. Nd2 {[%clk 0:00:24]}  Bb4 {[%clk 0:00:54]} 22. Ne4 {[%clk 0:00:13]}  Bxe1 {[%clk 0:00:47]} 23. Qxe1 {[%clk 0:00:14]}  Re2 {[%clk 0:00:42]} 24. Qb1 {[%clk 0:00:06]}  Qd4 {[%clk 0:00:29]} 25. Ng3 {[%clk 0:00:03]}  Qxf2+ {[%clk 0:00:27]} 26. Kh1 {[%clk 0:00:01]}  Qxg2# {[%clk 0:00:27]} 0-1


[Site "https://www.chess.com"]